[Event "White Rook U14 Final 2019"]
[Site "Sochi"]
[Date "2019.06.09"]
[Round "8.23"]
[White "Shirkunov, Alexandr"]
[Black "Klimovskikh, Nikita"]
[Result "1-0"]
[ECO "E01"]
[WhiteElo "1557"]
[BlackElo "1333"]
[Annotator "NA"]
[PlyCount "103"]
[EventDate "2019.06.02"]
[EventCountry "RUS"]
[SourceTitle "playchess.com"]
[Source "ChessBase"]
[SourceQuality "1"]
[TimeControl "5400+30"]

1. d4 {[%emt 0:00:00]} Nf6 {[%emt 0:00:00]} 2. c4 {[%emt 0:00:00]} e6 {[%emt 0:00:00]} 3. g3 {[%emt 0:00:00]} d5 {[%emt 0:00:05]} 4. Nf3 {[%emt 0:00:00]} Bb4+ {[%emt 0:00:20]} 5. Nbd2 {[%emt 0:00:00]} Be7 {[%emt 0:07:13]} 6. Bg2 {[%emt 0:00:00]} O-O {[%emt 0:01:24]} 7. O-O {[%emt 0:00:00]} c6 {[%emt 0:02:37]} 8. Qc2 {[%emt 0:00:01]} Nbd7 {[%emt 0:02:15]} 9. e4 {[%emt 0:00:05]} dxe4 {[%emt 0:04:37]} 10. Nxe4 {[%emt 0:00:05]} Nxe4 {[%emt 0:00:24]} 11. Qxe4 {[%emt 0:00:05]} Nf6 {[%emt 0:07:22]} 12. Qe2 {[%emt 0:00:38]} Re8 {[%emt 0:14:48]} 13. Rd1 {[%emt 0:00:23]} Bf8 {[%emt 0:07:05]} 14. Bf4 {[%emt 0:18:08]} h6 {[%emt 0:05:47]} 15. h4 {[%emt 0:07:35]} Bd6 {[%emt 0:22:50]} 16. Ne5 {[%emt 0:00:43]} Qe7 {[%emt 0:06:08]} 17. a3 {[%emt 0:02:47]} Bxe5 {[%emt 0:02:01]} 18. Bxe5 {[%emt 0:01:36]} Nd7 {[%emt 0:02:05]} 19. c5 {[%emt 0:01:29]} Nxe5 {[%emt 0:00:25]} 20. Qxe5 {[%emt 0:00:05]} Rd8 {[%emt 0:01:10]} 21. b4 {[%emt 0:00:30]} a5 {[%emt 0:03:25]} 22. Rab1 {[%emt 0:01:03]} axb4 {[%emt 0:01:02]} 23. axb4 {[%emt 0:00:03]} Qd7 {[%emt 0:00:58]} 24. Bf1 {[%emt 0:04:33]} Ra4 {[%emt 0:01:29]} 25. b5 {[%emt 0:03:57]} Rxd4 {[%emt 0:01:59]} 26. bxc6 {[%emt 0:00:09]} bxc6 {[%emt 0:00:44]} 27. Rxd4 {[%emt 0:00:03]} Qxd4 {[%emt 0:00:14]} 28. Qxd4 {[%emt 0:00:03]} Rxd4 {[%emt 0:00:05]} 29. Rb8 {[%emt 0:00:01]} Rd8 {[%emt 0:01:47]} 30. Ba6 {[%emt 0:03:30]} Bxa6 {[%emt 0:00:14]} 31. Rxd8+ {[%emt 0:00:04]} Kh7 {[%emt 0:00:05]} 32. Rd6 {[%emt 0:01:21]} Bb5 {[%emt 0:00:16]} 33. Kg2 {[%emt 0:00:41]} Kg6 {[%emt 0:00:04]} 34. Kf3 {[%emt 0:00:55]} Bc4 {[%emt 0:02:26]} 35. Ke3 {[%emt 0:00:00]} Bd5 {[%emt 0:00:14]} 36. g4 {[%emt 0:01:17]} Kf6 {[%emt 0:01:37]} 37. Rd8 {[%emt 0:03:08]} g6 {[%emt 0:01:03]} 38. Rh8 {[%emt 0:00:09]} Kg7 {[%emt 0:00:02]} 39. Ra8 {[%emt 0:00:07]} Kf6 {[%emt 0:00:07]} 40. f4 {[%emt 0:01:13]} h5 {[%emt 0:01:27]} 41. gxh5 {[%emt 0:01:05]} gxh5 {[%emt 0:00:02]} 42. Rg8 {[%emt 0:00:14]} e5 {[%emt 0:00:47]} 43. Rg5 {[%emt 0:01:15]} exf4+ {[%emt 0:00:53]} 44. Kxf4 {[%emt 0:00:05]} Bh1 {[%emt 0:00:47]} 45. Rxh5 {[%emt 0:00:18]} Kg6 {[%emt 0:00:33]} 46. Rg5+ {[%emt 0:02:32]} Kh6 {[%emt 0:00:00]} 47. Ke5 {[%emt 0:00:51]} Bd5 {[%emt 0:01:13]} 48. Kf6 {[%emt 0:00:00]} Be6 {[%emt 0:00:01]} 49. Ke7 {[%emt 0:00:35]} Bc4 {[%emt 0:00:57]} 50. Kf6 {[%emt 0:02:12]} Be6 {[%emt 0:00:37]} 51. Rg7 {[%emt 0:00:10]} Kh5 {[%emt 0:00:20]} 52. Rxf7 {[%emt 0:00:13]} 1-0

[Event "White Rook U14 Final 2019"]
[Site "Sochi"]
[Date "2019.06.09"]
[Round "8.24"]
[White "Belova, Tatyana"]
[Black "Toledo Flores, Marianna"]
[Result "1/2-1/2"]
[ECO "D35"]
[WhiteElo "1222"]
[BlackElo "1530"]
[Annotator "NA"]
[PlyCount "105"]
[EventDate "2019.06.02"]
[EventCountry "RUS"]
[SourceTitle "playchess.com"]
[Source "ChessBase"]
[SourceQuality "1"]
[TimeControl "5400+30"]

1. d4 {[%emt 0:00:00]} Nf6 {[%emt 0:00:00]} 2. c4 {[%emt 0:00:00]} e6 {[%emt 0:00:00]} 3. Nc3 {[%emt 0:00:00]} d5 {[%emt 0:00:00]} 4. cxd5 {[%emt 0:00:00]} exd5 {[%emt 0:00:00]} 5. Bf4 {[%emt 0:00:00]} c6 {[%emt 0:00:03]} 6. e3 {[%emt 0:00:00]} Be7 {[%emt 0:00:17]} 7. Bd3 {[%emt 0:00:22]} O-O {[%emt 0:00:38]} 8. Nge2 {[%emt 0:00:29]} Nbd7 {[%emt 0:00:22]} 9. Qc2 {[%emt 0:00:58]} Re8 {[%emt 0:00:16]} 10. f3 {[%emt 0:01:53]} Nf8 {[%emt 0:00:30]} 11. e4 {[%emt 0:03:13]} dxe4 {[%emt 0:00:14]} 12. fxe4 {[%emt 0:00:15]} c5 {[%emt 0:03:11]} 13. d5 {[%emt 0:05:24]} Ng6 {[%emt 0:03:30]} 14. O-O-O {[%emt 0:05:32]} a6 {[%emt 0:02:05]} 15. h3 {[%emt 0:03:36]} b5 {[%emt 0:03:52]} 16. e5 {[%emt 0:07:23]} Nh5 {[%emt 0:00:41]} 17. Bd2 {[%emt 0:13:30]} Bh4 {[%emt 0:02:31]} 18. g4 {[%emt 0:02:58]} Ng3 {[%emt 0:00:17]} 19. Nxg3 {[%emt 0:01:46]} Bxg3 {[%emt 0:00:42]} 20. e6 {[%emt 0:03:27]} fxe6 {[%emt 0:08:12]} 21. dxe6 {[%emt 0:00:26]} Rxe6 {[%emt 0:01:34]} 22. Bf5 {[%emt 0:02:36]} Rb6 {[%emt 0:10:17]} 23. Be4 {[%emt 0:04:04]} Bb7 {[%emt 0:01:13]} 24. Bxb7 {[%emt 0:00:15]} Rxb7 {[%emt 0:00:15]} 25. Ne4 {[%emt 0:01:29]} Be5 {[%emt 0:04:10]} 26. Nxc5 {[%emt 0:04:36]} Rc7 {[%emt 0:11:37]} 27. Ba5 {[%emt 0:03:12]} Qg5+ {[%emt 0:00:00]} 28. Kb1 {[%emt 0:01:40]} Rc6 {[%emt 0:06:31]} 29. Qb3+ {[%emt 0:03:47]} Kh8 {[%emt 0:01:08]} 30. Ne6 {[%emt 0:02:05]} Qe7 {[%emt 0:04:10]} 31. Rd8+ {[%emt 0:02:20]} Rxd8 {[%emt 0:01:35]} 32. Nxd8 {[%emt 0:00:14]} Rf6 {[%emt 0:00:40]} 33. Rc1 {[%emt 0:04:15]} Bd4 {[%emt 0:06:08]} 34. a3 {[%emt 0:07:30]} h6 {[%emt 0:03:32]} 35. Nc6 {[%emt 0:01:23]} Qe4+ {[%emt 0:02:38]} 36. Qc2 {[%emt 0:02:35]} Qxc2+ {[%emt 0:01:09]} 37. Rxc2 {[%emt 0:00:00]} Rf1+ {[%emt 0:00:45]} 38. Ka2 {[%emt 0:01:24]} Bf6 {[%emt 0:00:23]} 39. Nb4 {[%emt 0:02:44]} Rh1 {[%emt 0:01:09]} 40. Nxa6 {[%emt 0:01:16]} Ne5 {[%emt 0:03:54]} 41. Bc3 {[%emt 0:03:04]} Rxh3 {[%emt 0:01:38]} 42. Bxe5 {[%emt 0:01:57]} Bxe5 {[%emt 0:00:37]} 43. Rc5 {[%emt 0:00:42]} Bd4 {[%emt 0:00:19]} 44. Rxb5 {[%emt 0:00:09]} Rg3 {[%emt 0:00:20]} 45. a4 {[%emt 0:01:09]} Rxg4 {[%emt 0:00:13]} 46. a5 {[%emt 0:00:47]} g5 {[%emt 0:01:45]} 47. b4 {[%emt 0:01:47]} h5 {[%emt 0:00:00]} 48. Nc5 {[%emt 0:00:55]} h4 {[%emt 0:06:00]} 49. a6 {[%emt 0:00:47]} Bxc5 {[%emt 0:00:13]} 50. Rxc5 {[%emt 0:00:59]} Rxb4 {[%emt 0:00:57]} 51. Rxg5 {[%emt 0:01:20]} Ra4+ {[%emt 0:00:35]} 52. Kb3 {[%emt 0:00:09]} Rxa6 {[%emt 0:00:00]} 53. Rh5+ {[%emt 0:00:17]} 1/2-1/2

[Event "White Rook U14 Final 2019"]
[Site "Sochi"]
[Date "2019.06.09"]
[Round "8.25"]
[White "Voloshkin, Daniil"]
[Black "Sargsyan, Gor K."]
[Result "0-1"]
[ECO "B98"]
[WhiteElo "1557"]
[BlackElo "1641"]
[Annotator "NA"]
[PlyCount "96"]
[EventDate "2019.06.02"]
[EventCountry "RUS"]
[SourceTitle "playchess.com"]
[Source "ChessBase"]
[SourceQuality "1"]
[TimeControl "5400+30"]

1. e4 {[%emt 0:00:00]} c5 {[%emt 0:00:00]} 2. Nf3 {[%emt 0:00:00]} d6 {[%emt 0:00:00]} 3. d4 {[%emt 0:00:00]} cxd4 {[%emt 0:00:00]} 4. Nxd4 {[%emt 0:00:00]} Nf6 {[%emt 0:00:00]} 5. Nc3 {[%emt 0:00:00]} a6 {[%emt 0:00:00]} 6. Bg5 {[%emt 0:00:02]} e6 {[%emt 0:00:07]} 7. f4 {[%emt 0:00:37]} Be7 {[%emt 0:00:46]} 8. Qf3 {[%emt 0:00:00]} Qc7 {[%emt 0:00:35]} 9. O-O-O {[%emt 0:00:00]} b5 {[%emt 0:00:12]} 10. Bxf6 {[%emt 0:08:33]} gxf6 {[%emt 0:01:02]} 11. e5 {[%emt 0:16:08]} Bb7 {[%emt 0:00:25]} 12. Qh5 {[%emt 0:00:29]} Bc8 {[%emt 0:06:35]} 13. exf6 {[%emt 0:07:09]} Bxf6 {[%emt 0:12:09]} 14. Bxb5+ {[%emt 0:13:03]} Kf8 {[%emt 0:05:20]} 15. Ba4 {[%emt 0:10:04]} Bb7 {[%emt 0:01:12]} 16. Rhe1 {[%emt 0:03:16]} Qc8 {[%emt 0:33:56]} 17. Bb3 {[%emt 0:02:59]} d5 {[%emt 0:00:23]} 18. f5 {[%emt 0:01:37]} e5 {[%emt 0:15:46]} 19. Nf3 {[%emt 0:01:06]} Qc7 {[%emt 0:04:45]} 20. Nxd5 {[%emt 0:01:11]} Bxd5 {[%emt 0:00:07]} 21. Rxd5 {[%emt 0:00:08]} Ra7 {[%emt 0:04:22]} 22. Nxe5 {[%emt 0:00:55]} h6 {[%emt 0:07:54]} 23. Ba4 {[%emt 0:02:14]} Kg7 {[%emt 0:01:22]} 24. Rd7 {[%emt 0:03:24]} Qxd7 {[%emt 0:04:18]} 25. Nxd7 {[%emt 0:00:10]} Nxd7 {[%emt 0:00:00]} 26. Qg4+ {[%emt 0:00:08]} Bg5+ {[%emt 0:00:00]} 27. Kb1 {[%emt 0:00:12]} Nf6 {[%emt 0:00:15]} 28. Qd4 {[%emt 0:00:29]} Raa8 {[%emt 0:00:00]} 29. c4 {[%emt 0:04:43]} Rhd8 {[%emt 0:00:34]} 30. Qe5 {[%emt 0:01:11]} Rd2 {[%emt 0:00:44]} 31. Re2 {[%emt 0:00:46]} Rd3 {[%emt 0:00:27]} 32. b4 {[%emt 0:02:44]} Rc8 {[%emt 0:00:43]} 33. c5 {[%emt 0:00:16]} a5 {[%emt 0:00:51]} 34. c6 {[%emt 0:03:14]} axb4 {[%emt 0:00:21]} 35. c7 {[%emt 0:03:27]} Rd5 {[%emt 0:01:13]} 36. Qg3 {[%emt 0:00:04]} Kh7 {[%emt 0:00:32]} 37. Rc2 {[%emt 0:00:12]} Ne4 {[%emt 0:00:09]} 38. Qf3 {[%emt 0:04:01]} Rd4 {[%emt 0:00:35]} 39. Kb2 {[%emt 0:05:39]} Nc3 {[%emt 0:01:16]} 40. Qc6 {[%emt 0:02:36]} Rd1 {[%emt 0:00:29]} 41. Kb3 {[%emt 0:00:31]} Nd5 {[%emt 0:00:28]} 42. Qa6 {[%emt 0:03:20]} Rb1+ {[%emt 0:00:31]} 43. Kc4 {[%emt 0:00:47]} Rd1 {[%emt 0:00:00]} 44. Kb5 {[%emt 0:00:23]} Rxc7 {[%emt 0:00:56]} 45. Rc6 {[%emt 0:02:27]} Rd4 {[%emt 0:00:04]} 46. Kc5 {[%emt 0:00:08]} Be3 {[%emt 0:00:19]} 47. Qe2 {[%emt 0:01:19]} Rd2+ {[%emt 0:00:42]} 48. Qxe3 {[%emt 0:00:00]} Rxc6+ {[%emt 0:00:06]} 0-1

[Event "White Rook U14 Final 2019"]
[Site "Sochi"]
[Date "2019.06.09"]
[Round "8.26"]
[White "Grigoryan, Hayk V."]
[Black "Vorzhevitin, Dmitriy"]
[Result "1/2-1/2"]
[ECO "B09"]
[WhiteElo "1423"]
[BlackElo "1346"]
[Annotator "NA"]
[PlyCount "73"]
[EventDate "2019.06.02"]
[EventCountry "RUS"]
[SourceTitle "playchess.com"]
[Source "ChessBase"]
[SourceQuality "1"]
[TimeControl "5400+30"]

1. e4 {[%emt 0:00:00]} d6 {[%emt 0:00:00]} 2. d4 {[%emt 0:00:00]} Nf6 {[%emt 0:00:00]} 3. Nc3 {[%emt 0:00:00]} g6 {[%emt 0:00:07]} 4. f4 {[%emt 0:00:00]} Bg7 {[%emt 0:00:31]} 5. Nf3 {[%emt 0:00:00]} c5 {[%emt 0:01:18]} 6. dxc5 {[%emt 0:01:05]} Qa5 {[%emt 0:01:55]} 7. e5 {[%emt 0:12:36]} dxe5 {[%emt 0:23:54]} 8. Nxe5 {[%emt 0:11:00]} O-O {[%emt 0:01:01]} 9. Qf3 {[%emt 0:11:48]} Nc6 {[%emt 0:04:25]} 10. Nxc6 {[%emt 0:08:02]} bxc6 {[%emt 0:00:06]} 11. Bd2 {[%emt 0:00:58]} Bg4 {[%emt 0:00:31]} 12. Qe3 {[%emt 0:02:44]} Rfd8 {[%emt 0:02:01]} 13. Bd3 {[%emt 0:09:40]} Bf5 {[%emt 0:04:06]} 14. Ne4 {[%emt 0:03:56]} Rxd3 {[%emt 0:06:24]} 15. cxd3 {[%emt 0:02:20]} Qb5 {[%emt 0:01:25]} 16. Bc3 {[%emt 0:01:17]} Nd5 {[%emt 0:00:56]} 17. Qd2 {[%emt 0:01:49]} Rd8 {[%emt 0:05:16]} 18. O-O {[%emt 0:03:20]} Nxc3 {[%emt 0:02:09]} 19. Nxc3 {[%emt 0:01:21]} Qxc5+ {[%emt 0:00:12]} 20. Kh1 {[%emt 0:00:51]} Rxd3 {[%emt 0:01:13]} 21. Qe2 {[%emt 0:00:31]} Bxc3 {[%emt 0:01:09]} 22. Rac1 {[%emt 0:00:12]} Qd5 {[%emt 0:06:03]} 23. Rfd1 {[%emt 0:08:43]} Bxb2 {[%emt 0:03:54]} 24. Rxd3 {[%emt 0:00:22]} Qxd3 {[%emt 0:09:38]} 25. Qxb2 {[%emt 0:00:11]} Qb5 {[%emt 0:01:09]} 26. Qxb5 {[%emt 0:01:48]} cxb5 {[%emt 0:00:01]} 27. Rc7 {[%emt 0:00:30]} a5 {[%emt 0:01:12]} 28. Rxe7 {[%emt 0:00:00]} Be6 {[%emt 0:00:39]} 29. a3 {[%emt 0:01:37]} b4 {[%emt 0:01:26]} 30. axb4 {[%emt 0:00:00]} axb4 {[%emt 0:00:34]} 31. Rb7 {[%emt 0:00:00]} b3 {[%emt 0:00:00]} 32. Kg1 {[%emt 0:00:00]} Kg7 {[%emt 0:00:00]} 33. Kf2 {[%emt 0:00:05]} Kf6 {[%emt 0:00:24]} 34. Ke3 {[%emt 0:00:21]} Kf5 {[%emt 0:00:27]} 35. h3 {[%emt 0:00:06]} h5 {[%emt 0:00:00]} 36. Rb5+ {[%emt 0:00:24]} Kf6 {[%emt 0:00:08]} 37. h4 {[%emt 0:02:50]} 1/2-1/2

[Event "White Rook U14 Final 2019"]
[Site "Sochi"]
[Date "2019.06.09"]
[Round "8.27"]
[White "Zenkov, Maksim"]
[Black "Hovhannisyan, Artyom"]
[Result "0-1"]
[ECO "C58"]
[WhiteElo "1394"]
[BlackElo "1458"]
[Annotator "NA"]
[PlyCount "48"]
[EventDate "2019.06.02"]
[EventCountry "RUS"]
[SourceTitle "playchess.com"]
[Source "ChessBase"]
[SourceQuality "1"]
[TimeControl "5400+30"]

1. e4 {[%emt 0:00:00]} e5 {[%emt 0:00:00]} 2. Nf3 {[%emt 0:00:00]} Nc6 {[%emt 0:00:00]} 3. Bc4 {[%emt 0:00:00]} Nf6 {[%emt 0:00:00]} 4. Ng5 {[%emt 0:00:00]} d5 {[%emt 0:00:34]} 5. exd5 {[%emt 0:00:00]} Na5 {[%emt 0:00:00]} 6. Bb5+ {[%emt 0:00:00]} c6 {[%emt 0:00:37]} 7. dxc6 {[%emt 0:00:00]} bxc6 {[%emt 0:00:30]} 8. Qf3 {[%emt 0:00:59]} Bb7 {[%emt 0:01:43]} 9. Bd3 {[%emt 0:05:48]} Bd6 {[%emt 0:04:59]} 10. O-O {[%emt 0:08:41]} O-O {[%emt 0:02:36]} 11. Nc3 {[%emt 0:03:48]} h6 {[%emt 0:03:05]} 12. Nge4 {[%emt 0:04:35]} Nxe4 {[%emt 0:06:04]} 13. Nxe4 {[%emt 0:01:11]} f5 {[%emt 0:01:21]} 14. Nxd6 {[%emt 0:00:21]} Qxd6 {[%emt 0:00:05]} 15. Qg3 {[%emt 0:05:55]} Rae8 {[%emt 0:04:18]} 16. b3 {[%emt 0:02:59]} Rf6 {[%emt 0:00:42]} 17. Bb2 {[%emt 0:08:54]} c5 {[%emt 0:01:15]} 18. Rfe1 {[%emt 0:03:14]} Rg6 {[%emt 0:01:22]} 19. Bxe5 {[%emt 0:12:24]} Qc6 {[%emt 0:00:14]} 20. Qh3 {[%emt 0:00:16]} Rxg2+ {[%emt 0:00:11]} 21. Kf1 {[%emt 0:00:11]} Rg1+ {[%emt 0:00:51]} 22. Ke2 {[%emt 0:04:11]} Rxe5+ {[%emt 0:00:00]} 23. Be4 {[%emt 0:00:17]} Qxe4+ {[%emt 0:00:02]} 24. Qe3 {[%emt 0:00:10]} Qf3+ {[%emt 0:00:42]} 0-1

[Event "White Rook U14 Final 2019"]
[Site "Sochi"]
[Date "2019.06.09"]
[Round "8.28"]
[White "Hakobyan, Astghik"]
[Black "Golikova, Alisa"]
[Result "1-0"]
[ECO "B22"]
[WhiteElo "1791"]
[BlackElo "1252"]
[Annotator "NA"]
[PlyCount "69"]
[EventDate "2019.06.02"]
[EventCountry "RUS"]
[SourceTitle "playchess.com"]
[Source "ChessBase"]
[SourceQuality "1"]
[TimeControl "5400+30"]

1. e4 {[%emt 0:00:00]} c5 {[%emt 0:00:00]} 2. Nf3 {[%emt 0:00:07]} g6 {[%emt 0:00:25]} 3. d4 {[%emt 0:01:12]} Bg7 {[%emt 0:00:32]} 4. c3 {[%emt 0:00:24]} cxd4 {[%emt 0:04:09]} 5. cxd4 {[%emt 0:00:16]} Nc6 {[%emt 0:02:01]} 6. Nc3 {[%emt 0:01:29]} Nf6 {[%emt 0:03:28]} 7. e5 {[%emt 0:00:56]} Ng4 {[%emt 0:00:56]} 8. h3 {[%emt 0:00:48]} Nh6 {[%emt 0:00:24]} 9. d5 {[%emt 0:01:29]} Nb4 {[%emt 0:03:21]} 10. a3 {[%emt 0:01:28]} Na6 {[%emt 0:02:17]} 11. Bxa6 {[%emt 0:09:52]} bxa6 {[%emt 0:00:00]} 12. O-O {[%emt 0:00:24]} O-O {[%emt 0:01:44]} 13. Bg5 {[%emt 0:03:04]} d6 {[%emt 0:03:05]} 14. Qc1 {[%emt 0:01:13]} Nf5 {[%emt 0:00:56]} 15. g4 {[%emt 0:00:08]} h6 {[%emt 0:03:37]} 16. Bd2 {[%emt 0:00:24]} dxe5 {[%emt 0:04:17]} 17. gxf5 {[%emt 0:02:08]} Bxf5 {[%emt 0:00:16]} 18. Bxh6 {[%emt 0:01:20]} e4 {[%emt 0:03:22]} 19. Nh2 {[%emt 0:01:26]} Bxh3 {[%emt 0:00:40]} 20. Re1 {[%emt 0:00:23]} Rc8 {[%emt 0:04:03]} 21. Qe3 {[%emt 0:01:57]} Bf5 {[%emt 0:02:13]} 22. Rad1 {[%emt 0:01:11]} Qd6 {[%emt 0:03:39]} 23. Nxe4 {[%emt 0:01:41]} Bxe4 {[%emt 0:01:03]} 24. Bxg7 {[%emt 0:00:23]} Kxg7 {[%emt 0:00:16]} 25. Qxe4 {[%emt 0:00:07]} Rh8 {[%emt 0:00:32]} 26. Qe5+ {[%emt 0:00:08]} Qxe5 {[%emt 0:00:15]} 27. Rxe5 {[%emt 0:00:08]} Rh3 {[%emt 0:00:16]} 28. Rxe7 {[%emt 0:00:54]} Rch8 {[%emt 0:00:08]} 29. Nf1 {[%emt 0:00:00]} R3h4 {[%emt 0:01:50]} 30. d6 {[%emt 0:00:15]} Kf6 {[%emt 0:00:15]} 31. Rxa7 {[%emt 0:00:32]} Ke6 {[%emt 0:00:08]} 32. Rxa6 {[%emt 0:00:16]} Rd8 {[%emt 0:00:16]} 33. b4 {[%emt 0:00:07]} f5 {[%emt 0:00:08]} 34. d7+ {[%emt 0:00:24]} Ke7 {[%emt 0:00:08]} 35. Rxg6 {[%emt 0:00:23]} 1-0

[Event "White Rook U14 Final 2019"]
[Site "Sochi"]
[Date "2019.06.09"]
[Round "8.29"]
[White "Sizov, Lev"]
[Black "Mertsalov, Roman"]
[Result "1-0"]
[ECO "D36"]
[WhiteElo "1692"]
[BlackElo "1349"]
[Annotator "NA"]
[PlyCount "120"]
[EventDate "2019.06.02"]
[EventCountry "RUS"]
[SourceTitle "playchess.com"]
[Source "ChessBase"]
[SourceQuality "1"]
[TimeControl "5400+30"]

1. d4 {[%emt 0:00:00]} d5 {[%emt 0:00:07]} 2. c4 {[%emt 0:00:08]} e6 {[%emt 0:00:00]} 3. Nc3 {[%emt 0:00:08]} Nf6 {[%emt 0:00:09]} 4. cxd5 {[%emt 0:02:48]} exd5 {[%emt 0:00:08]} 5. Bg5 {[%emt 0:00:08]} Be7 {[%emt 0:00:08]} 6. e3 {[%emt 0:01:04]} c6 {[%emt 0:00:25]} 7. Qc2 {[%emt 0:00:32]} Nbd7 {[%emt 0:03:05]} 8. Bd3 {[%emt 0:00:08]} Nf8 {[%emt 0:02:01]} 9. Nge2 {[%emt 0:11:38]} Ne6 {[%emt 0:02:24]} 10. Bh4 {[%emt 0:00:25]} h6 {[%emt 0:02:24]} 11. Bg3 {[%emt 0:08:25]} Bd6 {[%emt 0:05:11]} 12. Bxd6 {[%emt 0:00:08]} Qxd6 {[%emt 0:00:09]} 13. Ng3 {[%emt 0:00:07]} Bd7 {[%emt 0:20:06]} 14. O-O {[%emt 0:05:06]} O-O {[%emt 0:01:49]} 15. Nf5 {[%emt 0:01:18]} Qc7 {[%emt 0:00:08]} 16. b4 {[%emt 0:02:13]} a6 {[%emt 0:01:11]} 17. Na4 {[%emt 0:03:23]} Ng4 {[%emt 0:07:56]} 18. Ng3 {[%emt 0:00:32]} h5 {[%emt 0:01:18]} 19. Rfc1 {[%emt 0:21:29]} h4 {[%emt 0:01:13]} 20. Nf1 {[%emt 0:00:00]} h3 {[%emt 0:01:55]} 21. gxh3 {[%emt 0:12:58]} Nh6 {[%emt 0:01:35]} 22. h4 {[%emt 0:01:13]} Qd8 {[%emt 0:03:09]} 23. f4 {[%emt 0:06:30]} Qxh4 {[%emt 0:01:35]} 24. Nb6 {[%emt 0:00:35]} Rad8 {[%emt 0:00:47]} 25. Nxd7 {[%emt 0:00:18]} Rxd7 {[%emt 0:00:00]} 26. Qf2 {[%emt 0:02:33]} Qf6 {[%emt 0:02:24]} 27. Ng3 {[%emt 0:02:34]} Ng4 {[%emt 0:00:12]} 28. Qf3 {[%emt 0:00:18]} Qh4 {[%emt 0:00:25]} 29. Rc2 {[%emt 0:00:24]} g6 {[%emt 0:12:01]} 30. Rg2 {[%emt 0:00:21]} Qh3 {[%emt 0:05:04]} 31. Be2 {[%emt 0:08:30]} f5 {[%emt 0:01:17]} 32. Nxf5 {[%emt 0:01:43]} Qxf3 {[%emt 0:00:04]} 33. Bxf3 {[%emt 0:00:04]} gxf5 {[%emt 0:06:05]} 34. h3 {[%emt 0:00:04]} Rh7 {[%emt 0:04:14]} 35. hxg4 {[%emt 0:00:11]} fxg4 {[%emt 0:00:28]} 36. Bxg4 {[%emt 0:00:21]} Kf7 {[%emt 0:00:11]} 37. Kf2 {[%emt 0:03:08]} Ke7 {[%emt 0:00:32]} 38. Rag1 {[%emt 0:00:35]} Ng5 {[%emt 0:02:13]} 39. Bf5 {[%emt 0:01:22]} Ne4+ {[%emt 0:00:35]} 40. Bxe4 {[%emt 0:00:09]} dxe4 {[%emt 0:00:06]} 41. Rg5 {[%emt 0:01:28]} Kd7 {[%emt 0:01:18]} 42. Rg7+ {[%emt 0:01:40]} Rf7 {[%emt 0:00:12]} 43. Rxf7+ {[%emt 0:00:16]} Rxf7 {[%emt 0:00:03]} 44. Rg5 {[%emt 0:00:00]} Kd6 {[%emt 0:00:16]} 45. Re5 {[%emt 0:01:08]} Re7 {[%emt 0:00:54]} 46. Rxe7 {[%emt 0:00:06]} Kxe7 {[%emt 0:00:03]} 47. a4 {[%emt 0:00:22]} Ke6 {[%emt 0:00:03]} 48. a5 {[%emt 0:00:13]} Kd5 {[%emt 0:00:56]} 49. Kg3 {[%emt 0:00:06]} Kc4 {[%emt 0:00:47]} 50. f5 {[%emt 0:00:13]} Kxb4 {[%emt 0:00:09]} 51. f6 {[%emt 0:00:06]} Kxa5 {[%emt 0:00:07]} 52. f7 {[%emt 0:00:09]} b5 {[%emt 0:00:03]} 53. f8=Q {[%emt 0:00:20]} b4 {[%emt 0:00:06]} 54. Qc5+ {[%emt 0:00:21]} Ka4 {[%emt 0:00:06]} 55. Qxc6+ {[%emt 0:00:22]} Ka3 {[%emt 0:00:08]} 56. Qxa6+ {[%emt 0:00:24]} Kb2 {[%emt 0:00:02]} 57. Qe6 {[%emt 0:00:40]} b3 {[%emt 0:00:08]} 58. Qxe4 {[%emt 0:01:05]} Kc1 {[%emt 0:00:05]} 59. Qb7 {[%emt 0:00:08]} b2 {[%emt 0:00:06]} 60. d5 {[%emt 0:00:10]} Kc2 {[%emt 0:00:19]} 1-0

[Event "White Rook U14 Final 2019"]
[Site "Sochi"]
[Date "2019.06.09"]
[Round "8.30"]
[White "Mertsalov, Semen"]
[Black "Komissarova, Soigina"]
[Result "0-1"]
[ECO "E01"]
[WhiteElo "1477"]
[BlackElo "1665"]
[Annotator "NA"]
[PlyCount "108"]
[EventDate "2019.06.02"]
[EventCountry "RUS"]
[SourceTitle "playchess.com"]
[Source "ChessBase"]
[SourceQuality "1"]
[TimeControl "5400+30"]

1. d4 {[%emt 0:00:00]} d5 {[%emt 0:00:07]} 2. c4 {[%emt 0:00:08]} e6 {[%emt 0:00:17]} 3. Nf3 {[%emt 0:00:00]} Nf6 {[%emt 0:00:56]} 4. g3 {[%emt 0:00:07]} c6 {[%emt 0:00:25]} 5. Bg2 {[%emt 0:00:15]} Bd6 {[%emt 0:02:33]} 6. c5 {[%emt 0:00:33]} Bc7 {[%emt 0:01:19]} 7. O-O {[%emt 0:00:08]} Nbd7 {[%emt 0:00:33]} 8. Nc3 {[%emt 0:01:45]} O-O {[%emt 0:00:56]} 9. Re1 {[%emt 0:00:08]} e5 {[%emt 0:07:13]} 10. e3 {[%emt 0:00:09]} b6 {[%emt 0:04:57]} 11. b4 {[%emt 0:01:21]} e4 {[%emt 0:10:09]} 12. Nd2 {[%emt 0:00:16]} a5 {[%emt 0:00:55]} 13. Ba3 {[%emt 0:01:44]} axb4 {[%emt 0:01:44]} 14. Bxb4 {[%emt 0:00:00]} bxc5 {[%emt 0:00:32]} 15. dxc5 {[%emt 0:00:23]} Be5 {[%emt 0:00:24]} 16. Nb3 {[%emt 0:00:33]} Nb8 {[%emt 0:15:32]} 17. Nd4 {[%emt 0:00:31]} Bg4 {[%emt 0:04:26]} 18. Qc2 {[%emt 0:04:20]} Nfd7 {[%emt 0:04:41]} 19. h3 {[%emt 0:02:45]} Be6 {[%emt 0:00:39]} 20. Na4 {[%emt 0:04:42]} Na6 {[%emt 0:09:38]} 21. a3 {[%emt 0:00:24]} Qf6 {[%emt 0:01:18]} 22. Red1 {[%emt 0:06:24]} Bxd4 {[%emt 0:01:52]} 23. exd4 {[%emt 0:00:29]} Nxb4 {[%emt 0:02:53]} 24. axb4 {[%emt 0:01:20]} Rab8 {[%emt 0:00:21]} 25. Qc3 {[%emt 0:06:46]} Qh6 {[%emt 0:02:16]} 26. h4 {[%emt 0:03:29]} f5 {[%emt 0:00:51]} 27. Bh3 {[%emt 0:00:21]} f4 {[%emt 0:05:57]} 28. Bxe6+ {[%emt 0:00:56]} Qxe6 {[%emt 0:00:07]} 29. Kh2 {[%emt 0:00:14]} fxg3+ {[%emt 0:12:48]} 30. Qxg3 {[%emt 0:01:23]} Rf3 {[%emt 0:00:27]} 31. Qg2 {[%emt 0:01:34]} Rbf8 {[%emt 0:01:09]} 32. Ra2 {[%emt 0:00:06]} R8f4 {[%emt 0:00:39]} 33. Nb6 {[%emt 0:00:51]} Rxh4+ {[%emt 0:01:03]} 34. Kg1 {[%emt 0:00:00]} Rg4 {[%emt 0:00:19]} 35. Ra8+ {[%emt 0:00:06]} Nf8 {[%emt 0:00:06]} 36. Qxg4 {[%emt 0:00:19]} Qxg4+ {[%emt 0:00:07]} 37. Kf1 {[%emt 0:00:00]} e3 {[%emt 0:00:33]} 38. Ra2 {[%emt 0:00:12]} Rxf2+ {[%emt 0:00:18]} 39. Rxf2 {[%emt 0:00:06]} Qxd1+ {[%emt 0:00:06]} 40. Kg2 {[%emt 0:00:06]} exf2 {[%emt 0:00:06]} 41. Kxf2 {[%emt 0:00:06]} Qxd4+ {[%emt 0:00:12]} 42. Kg3 {[%emt 0:00:06]} Qxb4 {[%emt 0:00:06]} 43. Nxd5 {[%emt 0:00:06]} cxd5 {[%emt 0:00:12]} 44. c6 {[%emt 0:00:00]} Qd6+ {[%emt 0:00:13]} 45. Kf3 {[%emt 0:00:12]} Qxc6 {[%emt 0:00:06]} 46. Ke3 {[%emt 0:00:00]} Qc4 {[%emt 0:00:12]} 47. Kf2 {[%emt 0:00:06]} Qc3 {[%emt 0:00:06]} 48. Ke2 {[%emt 0:00:06]} d4 {[%emt 0:00:06]} 49. Kf2 {[%emt 0:00:06]} Qe3+ {[%emt 0:00:12]} 50. Kg2 {[%emt 0:00:07]} d3 {[%emt 0:00:06]} 51. Kh2 {[%emt 0:00:06]} d2 {[%emt 0:00:12]} 52. Kg2 {[%emt 0:00:00]} d1=R {[%emt 0:00:18]} 53. Kh2 {[%emt 0:00:00]} Rd2+ {[%emt 0:00:06]} 54. Kh1 {[%emt 0:00:06]} Qe1# {[%emt 0:00:06]} 0-1